[Event "Late-Titled-Tuesday-Blitz-April-30-2024"]
[Site "Chess.com"]
[Date "2024.04.30"]
[Round "7"]
[White "xberli"]
[Black "superchess02"]
[Result "0-1"]
[WhiteElo "2629"]
[BlackElo "2859"]
[TimeControl "180+1"]
[EndTime "15:15:58 PDT"]
[Termination "superchess02 won by resignation"]

1. d4 {[%clk 0:02:59.8]} 1... Nf6 {[%clk 0:03:00.1]} 2. c4 {[%clk 0:02:59.6]}
2... g6 {[%clk 0:02:59.7]} 3. Nf3 {[%clk 0:02:59.9]} 3... Bg7 {[%clk 0:03:00.6]}
4. g3 {[%clk 0:03:00.3]} 4... O-O {[%clk 0:03:01.3]} 5. Bg2 {[%clk 0:03:01]}
5... d6 {[%clk 0:03:02.2]} 6. O-O {[%clk 0:03:00.8]} 6... Nbd7 {[%clk
0:03:03.1]} 7. Qc2 {[%clk 0:02:58.2]} 7... e5 {[%clk 0:03:02]} 8. Rd1 {[%clk
0:02:58.4]} 8... Re8 {[%clk 0:02:58]} 9. Nc3 {[%clk 0:02:50.7]} 9... e4 {[%clk
0:02:55.9]} 10. Ng5 {[%clk 0:02:48.5]} 10... e3 {[%clk 0:02:56.2]} 11. Bxe3
{[%clk 0:02:46.8]} 11... Rxe3 {[%clk 0:02:56.2]} 12. fxe3 {[%clk 0:02:46.7]}
12... Ng4 {[%clk 0:02:56.7]} 13. h4 {[%clk 0:02:35.1]} 13... Nxe3 {[%clk
0:02:55]} 14. Qb3 {[%clk 0:02:28.8]} 14... Nxd1 {[%clk 0:02:44.5]} 15. Rxd1
{[%clk 0:02:29.7]} 15... h6 {[%clk 0:02:31.6]} 16. Nxf7 {[%clk 0:02:11.3]} 16...
Kxf7 {[%clk 0:02:32.5]} 17. c5+ {[%clk 0:02:11.4]} 17... Kf8 {[%clk 0:02:32.6]}
18. Rf1+ {[%clk 0:02:10.9]} 18... Bf6 {[%clk 0:02:24.7]} 19. g4 {[%clk
0:02:09.5]} 19... Kg7 {[%clk 0:02:24.3]} 20. e3 {[%clk 0:02:02.3]} 20... dxc5
{[%clk 0:02:11.1]} 21. g5 {[%clk 0:01:58.4]} 21... hxg5 {[%clk 0:02:12]} 22.
hxg5 {[%clk 0:01:58.3]} 22... Bxg5 {[%clk 0:02:12.9]} 23. Rf7+ {[%clk
0:01:53.6]} 23... Kh8 {[%clk 0:02:05.9]} 24. Qe6 {[%clk 0:01:31.3]} 24... Nf6
{[%clk 0:01:29.4]} 25. Qe5 {[%clk 0:01:24.8]} 25... Qe8 {[%clk 0:01:17.7]} 26.
Re7 {[%clk 0:01:09.1]} 26... Qf8 {[%clk 0:01:17.5]} 27. Nd5 {[%clk 0:00:51.8]}
27... Bf5 {[%clk 0:01:15.8]} 28. Nxf6 {[%clk 0:00:43.8]} 28... Qxf6 {[%clk
0:01:16.7]} 29. Qh2+ {[%clk 0:00:23.7]} 29... Bh4 {[%clk 0:01:16.5]} 30. Qxc7
{[%clk 0:00:23.7]} 30... Qxe7 {[%clk 0:01:15.6]} 0-1

[Event "Late-Titled-Tuesday-Blitz-April-30-2024"]
[Site "Chess.com"]
[Date "2024.04.30"]
[Round "7"]
[White "ChEsper99"]
[Black "wild3000"]
[Result "0-1"]
[WhiteElo "2244"]
[BlackElo "2491"]
[TimeControl "180+1"]
[EndTime "15:16:01 PDT"]
[Termination "wild3000 won on time"]

1. e4 {[%clk 0:03:00.9]} 1... b6 {[%clk 0:02:59.6]} 2. g3 {[%clk 0:02:53.2]}
2... Bb7 {[%clk 0:02:58.9]} 3. Bg2 {[%clk 0:02:53.5]} 3... h5 {[%clk 0:02:58.9]}
4. h4 {[%clk 0:02:50.7]} 4... Nf6 {[%clk 0:02:58.5]} 5. Nc3 {[%clk 0:02:50]}
5... e6 {[%clk 0:02:57.8]} 6. a3 {[%clk 0:02:47.5]} 6... d5 {[%clk 0:02:56.3]}
7. exd5 {[%clk 0:02:45.8]} 7... exd5 {[%clk 0:02:56.3]} 8. d4 {[%clk 0:02:43.9]}
8... Bd6 {[%clk 0:02:54.1]} 9. Bg5 {[%clk 0:02:42.6]} 9... c6 {[%clk 0:02:53.4]}
10. Nf3 {[%clk 0:02:36.2]} 10... Qe7+ {[%clk 0:02:53.5]} 11. Qe2 {[%clk
0:02:04.4]} 11... Qxe2+ {[%clk 0:02:52.1]} 12. Kxe2 {[%clk 0:02:04.1]} 12...
Nbd7 {[%clk 0:02:52.3]} 13. Rhe1 {[%clk 0:01:59.9]} 13... O-O {[%clk 0:02:52]}
14. Kf1 {[%clk 0:01:59.5]} 14... Rfe8 {[%clk 0:02:51.8]} 15. Bxf6 {[%clk
0:01:55.2]} 15... Nxf6 {[%clk 0:02:51.2]} 16. Ne5 {[%clk 0:01:55.2]} 16... g6
{[%clk 0:02:45.4]} 17. Kg1 {[%clk 0:01:48.7]} 17... Re7 {[%clk 0:02:43.3]} 18.
f4 {[%clk 0:01:37.6]} 18... Rae8 {[%clk 0:02:42.1]} 19. a4 {[%clk 0:01:34.2]}
19... a5 {[%clk 0:02:39.3]} 20. Bf3 {[%clk 0:01:19.6]} 20... Kg7 {[%clk
0:02:38.4]} 21. Kg2 {[%clk 0:01:19.5]} 21... Ng8 {[%clk 0:02:29.4]} 22. Nd3
{[%clk 0:01:11.9]} 22... Ba6 {[%clk 0:02:22.9]} 23. Rxe7 {[%clk 0:01:11.9]}
23... Rxe7 {[%clk 0:02:22.8]} 24. Re1 {[%clk 0:01:12.3]} 24... Bxd3 {[%clk
0:02:22.2]} 25. Rxe7 {[%clk 0:01:11.8]} 25... Nxe7 {[%clk 0:02:23.1]} 26. cxd3
{[%clk 0:01:11.8]} 26... Nf5 {[%clk 0:02:23.3]} 27. Ne2 {[%clk 0:01:04.7]} 27...
Be7 {[%clk 0:02:23.3]} 28. Kf2 {[%clk 0:00:48]} 28... Bf6 {[%clk 0:02:23]} 29.
b3 {[%clk 0:00:41.3]} 29... Kf8 {[%clk 0:02:22.7]} 30. Bg2 {[%clk 0:00:41]}
30... Ke7 {[%clk 0:02:22.4]} 31. Bh3 {[%clk 0:00:41.5]} 31... Bxd4+ {[%clk
0:02:17]} 32. Kf3 {[%clk 0:00:40.9]} 32... Bf6 {[%clk 0:02:07]} 33. Kf2 {[%clk
0:00:08.9]} 33... Kd6 {[%clk 0:02:06.4]} 34. Ke1 {[%clk 0:00:09]} 34... Kc5
{[%clk 0:02:06.5]} 35. Kd2 {[%clk 0:00:09]} 35... Kb4 {[%clk 0:02:05.7]} 36. Kc2
{[%clk 0:00:08.3]} 36... c5 {[%clk 0:02:04.8]} 37. Nc1 {[%clk 0:00:04.1]} 37...
Nd4+ {[%clk 0:02:00.2]} 0-1

[Event "Late-Titled-Tuesday-Blitz-April-30-2024"]
[Site "Chess.com"]
[Date "2024.04.30"]
[Round "7"]
[White "PNEPaul"]
[Black "Sesleria"]
[Result "1-0"]
[WhiteElo "1964"]
[BlackElo "2109"]
[TimeControl "180+1"]
[EndTime "15:16:11 PDT"]
[Termination "PNEPaul won by resignation"]

1. e4 {[%clk 0:03:00.9]} 1... c5 {[%clk 0:02:58]} 2. Nf3 {[%clk 0:03:00.8]} 2...
e6 {[%clk 0:02:55.3]} 3. d4 {[%clk 0:03:00.6]} 3... cxd4 {[%clk 0:02:55.3]} 4.
c3 {[%clk 0:03:00.9]} 4... dxc3 {[%clk 0:02:53.8]} 5. Nxc3 {[%clk 0:03:01]} 5...
Nc6 {[%clk 0:02:52.6]} 6. Bf4 {[%clk 0:03:00.8]} 6... a6 {[%clk 0:02:41.8]} 7.
Bd3 {[%clk 0:02:59.1]} 7... Bb4 {[%clk 0:02:41.2]} 8. Qe2 {[%clk 0:02:57.2]}
8... d6 {[%clk 0:02:39.1]} 9. Rd1 {[%clk 0:02:55.1]} 9... Bxc3+ {[%clk
0:02:38.8]} 10. bxc3 {[%clk 0:02:54.6]} 10... Nge7 {[%clk 0:02:39]} 11. Bb1
{[%clk 0:02:53.1]} 11... Qa5 {[%clk 0:02:38]} 12. Bxd6 {[%clk 0:02:40.7]} 12...
Qxc3+ {[%clk 0:02:37.5]} 13. Kf1 {[%clk 0:02:40.8]} 13... O-O {[%clk 0:02:37.5]}
14. e5 {[%clk 0:02:37.1]} 14... Nf5 {[%clk 0:02:35.1]} 15. Bxf8 {[%clk
0:02:34.6]} 15... Kxf8 {[%clk 0:02:34.3]} 16. Bxf5 {[%clk 0:02:33.7]} 16... exf5
{[%clk 0:02:34.7]} 17. Ng5 {[%clk 0:02:07.5]} 17... h6 {[%clk 0:02:24.1]} 18.
Nf3 {[%clk 0:01:25.2]} 18... Be6 {[%clk 0:02:23.8]} 19. Kg1 {[%clk 0:01:21.2]}
19... g5 {[%clk 0:01:53.8]} 20. h3 {[%clk 0:01:12.7]} 20... Kg7 {[%clk
0:01:41.9]} 21. Qd2 {[%clk 0:01:04.6]} 21... Qa3 {[%clk 0:01:36.4]} 22. Nxg5
{[%clk 0:01:00.1]} 22... Rd8 {[%clk 0:01:12.2]} 23. Nxe6+ {[%clk 0:00:53.2]}
23... fxe6 {[%clk 0:01:13.1]} 24. Qc1 {[%clk 0:00:45.8]} 24... Rxd1+ {[%clk
0:01:06.9]} 25. Qxd1 {[%clk 0:00:44.2]} 25... Nxe5 {[%clk 0:01:05.8]} 26. Qd4
{[%clk 0:00:34.8]} 1-0

[Event "Late-Titled-Tuesday-Blitz-April-30-2024"]
[Site "Chess.com"]
[Date "2024.04.30"]
[Round "7"]
[White "ChadBiryani"]
[Black "lamomiajunior"]
[Result "1-0"]
[WhiteElo "2524"]
[BlackElo "2734"]
[TimeControl "180+1"]
[EndTime "15:16:19 PDT"]
[Termination "ChadBiryani won by resignation"]

1. d4 {[%clk 0:03:00.9]} 1... Nf6 {[%clk 0:03:00]} 2. Nc3 {[%clk 0:03:01.1]}
2... g6 {[%clk 0:03:00.5]} 3. Bg5 {[%clk 0:03:01.2]} 3... Bg7 {[%clk 0:02:58.8]}
4. e4 {[%clk 0:03:00.4]} 4... d6 {[%clk 0:02:59.2]} 5. Qd2 {[%clk 0:03:00.5]}
5... h5 {[%clk 0:02:57.7]} 6. f4 {[%clk 0:02:57.8]} 6... c6 {[%clk 0:02:51.2]}
7. Nf3 {[%clk 0:02:49.4]} 7... b5 {[%clk 0:02:47.5]} 8. a3 {[%clk 0:02:49.2]}
8... a6 {[%clk 0:02:46]} 9. e5 {[%clk 0:02:46.9]} 9... dxe5 {[%clk 0:02:36.6]}
10. fxe5 {[%clk 0:02:45.7]} 10... Nd5 {[%clk 0:02:34.8]} 11. Ne4 {[%clk
0:02:43.4]} 11... Bf5 {[%clk 0:02:32]} 12. Nd6+ {[%clk 0:02:42.1]} 12... Kf8
{[%clk 0:02:29.8]} 13. Nxf5 {[%clk 0:02:34.5]} 13... gxf5 {[%clk 0:02:30.7]} 14.
Bd3 {[%clk 0:02:32.3]} 14... Qd7 {[%clk 0:02:30.3]} 15. O-O {[%clk 0:02:29.6]}
15... e6 {[%clk 0:02:30.8]} 16. Nh4 {[%clk 0:02:25.9]} 16... c5 {[%clk
0:02:27.7]} 17. Nxf5 {[%clk 0:01:56.6]} 17... exf5 {[%clk 0:02:27.8]} 18. Bxf5
{[%clk 0:01:56.3]} 18... Qc6 {[%clk 0:02:18.7]} 19. Be4 {[%clk 0:01:36.2]} 19...
Kg8 {[%clk 0:02:02.3]} 20. dxc5 {[%clk 0:01:25.8]} 20... Qxc5+ {[%clk
0:02:02.5]} 21. Kh1 {[%clk 0:01:26.4]} 21... Nc7 {[%clk 0:01:36.1]} 22. Qd8+
{[%clk 0:01:23.4]} 22... Bf8 {[%clk 0:01:32.8]} 23. Bxa8 {[%clk 0:01:16]} 23...
Ne6 {[%clk 0:01:32.2]} 24. Qf6 {[%clk 0:01:02.9]} 24... Qa7 {[%clk 0:01:25.5]}
25. Bd5 {[%clk 0:00:53.8]} 25... Bg7 {[%clk 0:01:15.3]} 26. Qf5 {[%clk
0:00:49.8]} 26... Qd7 {[%clk 0:00:59.6]} 27. Rad1 {[%clk 0:00:42.4]} 27... Nc6
{[%clk 0:00:57.4]} 28. Bxc6 {[%clk 0:00:31.8]} 28... Qxc6 {[%clk 0:00:57.7]} 29.
Qxf7+ {[%clk 0:00:31.3]} 29... Kh7 {[%clk 0:00:58.4]} 30. Qf5+ {[%clk
0:00:21.4]} 30... Kg8 {[%clk 0:00:55.6]} 31. Rd6 {[%clk 0:00:21]} 1-0

[Event "Late-Titled-Tuesday-Blitz-April-30-2024"]
[Site "Chess.com"]
[Date "2024.04.30"]
[Round "7"]
[White "MeisterJabo"]
[Black "Sanyura"]
[Result "0-1"]
[WhiteElo "2456"]
[BlackElo "2651"]
[TimeControl "180+1"]
[EndTime "15:16:28 PDT"]
[Termination "Sanyura won by resignation"]

1. c4 {[%clk 0:03:00.9]} 1... c5 {[%clk 0:02:59.8]} 2. g3 {[%clk 0:02:58.9]}
2... Nf6 {[%clk 0:02:59.9]} 3. Bg2 {[%clk 0:02:59.2]} 3... g6 {[%clk 0:03:00.4]}
4. Nc3 {[%clk 0:02:59.1]} 4... Bg7 {[%clk 0:03:00.8]} 5. a3 {[%clk 0:02:59.7]}
5... O-O {[%clk 0:03:01.1]} 6. Rb1 {[%clk 0:03:00.3]} 6... Nc6 {[%clk
0:02:59.2]} 7. b4 {[%clk 0:03:00.6]} 7... cxb4 {[%clk 0:02:59.4]} 8. axb4 {[%clk
0:03:01.5]} 8... d6 {[%clk 0:02:59]} 9. Nf3 {[%clk 0:03:00]} 9... Bg4 {[%clk
0:02:56.3]} 10. O-O {[%clk 0:02:57.7]} 10... Nd7 {[%clk 0:02:55.2]} 11. h3
{[%clk 0:02:52.6]} 11... Bxf3 {[%clk 0:02:55]} 12. Bxf3 {[%clk 0:02:53.5]} 12...
Nde5 {[%clk 0:02:55.6]} 13. Bxc6 {[%clk 0:02:42.6]} 13... bxc6 {[%clk
0:02:52.3]} 14. d3 {[%clk 0:02:39.9]} 14... Nxc4 {[%clk 0:02:51.3]} 15. dxc4
{[%clk 0:02:25.8]} 15... Bxc3 {[%clk 0:02:51]} 16. Bh6 {[%clk 0:02:26.7]} 16...
Re8 {[%clk 0:02:50.8]} 17. Qd3 {[%clk 0:02:24.9]} 17... Bf6 {[%clk 0:02:50.5]}
18. b5 {[%clk 0:02:22.3]} 18... cxb5 {[%clk 0:02:49.9]} 19. Rxb5 {[%clk
0:02:22.8]} 19... a5 {[%clk 0:02:49.5]} 20. Be3 {[%clk 0:02:09.6]} 20... a4
{[%clk 0:02:48.6]} 21. Bd4 {[%clk 0:02:08.8]} 21... Bxd4 {[%clk 0:02:44.9]} 22.
Qxd4 {[%clk 0:02:09.7]} 22... a3 {[%clk 0:02:45]} 23. Ra1 {[%clk 0:02:04]} 23...
Qc8 {[%clk 0:02:45.1]} 24. Rb3 {[%clk 0:01:57.3]} 24... Qxh3 {[%clk 0:02:43.5]}
25. Rbxa3 {[%clk 0:01:57.6]} 25... Rxa3 {[%clk 0:02:43.5]} 26. Rxa3 {[%clk
0:01:58.5]} 26... Rb8 {[%clk 0:02:42]} 27. Ra1 {[%clk 0:01:56.7]} 27... Qe6
{[%clk 0:02:37.1]} 28. e3 {[%clk 0:01:53.8]} 28... f6 {[%clk 0:02:33.2]} 29. Qd5
{[%clk 0:01:52.6]} 29... Kf7 {[%clk 0:02:32.1]} 30. Rc1 {[%clk 0:01:48.8]} 30...
Rc8 {[%clk 0:02:31.1]} 31. Qd4 {[%clk 0:01:33]} 31... h5 {[%clk 0:02:30.7]} 32.
Rc3 {[%clk 0:01:32]} 32... Rc5 {[%clk 0:02:30.2]} 33. Rc1 {[%clk 0:01:30.7]}
33... Qh3 {[%clk 0:02:25]} 34. Ra1 {[%clk 0:01:25.3]} 34... h4 {[%clk
0:02:23.5]} 35. Qxh4 {[%clk 0:01:24.2]} 35... Qxh4 {[%clk 0:02:23.3]} 36. gxh4
{[%clk 0:01:24.9]} 36... Rxc4 {[%clk 0:02:23.8]} 37. h5 {[%clk 0:01:23.5]} 37...
gxh5 {[%clk 0:02:23.8]} 38. Kg2 {[%clk 0:01:24.2]} 38... f5 {[%clk 0:02:23.6]}
39. Kf3 {[%clk 0:01:24.8]} 39... h4 {[%clk 0:02:19.4]} 40. Ra8 {[%clk
0:01:23.5]} 40... Rg4 {[%clk 0:02:15.8]} 41. Rh8 {[%clk 0:01:21.8]} 41... Kg7
{[%clk 0:02:15.2]} 42. Rh5 {[%clk 0:01:21.2]} 42... e6 {[%clk 0:02:14.8]} 43.
Ke2 {[%clk 0:01:19.6]} 43... Kg6 {[%clk 0:02:11.3]} 44. Rh8 {[%clk 0:01:19.9]}
44... Kg5 {[%clk 0:02:11.7]} 45. Kf3 {[%clk 0:01:19.9]} 45... d5 {[%clk
0:02:06.1]} 46. Rg8+ {[%clk 0:01:20.3]} 46... Kf6 {[%clk 0:01:34.1]} 47. Rh8
{[%clk 0:01:19.8]} 47... d4 {[%clk 0:01:28.6]} 48. exd4 {[%clk 0:01:16.3]} 48...
Rxd4 {[%clk 0:01:29.5]} 49. Ke3 {[%clk 0:01:15.9]} 49... Ra4 {[%clk 0:01:29.2]}
50. Kf3 {[%clk 0:01:16.3]} 50... Ke5 {[%clk 0:01:24]} 51. Rh6 {[%clk 0:01:12.6]}
51... Ra3+ {[%clk 0:01:23.5]} 52. Kg2 {[%clk 0:00:57.3]} 52... h3+ {[%clk
0:01:23.7]} 53. Rxh3 {[%clk 0:00:58]} 53... Rxh3 {[%clk 0:01:23.4]} 54. Kxh3
{[%clk 0:00:58.9]} 54... Ke4 {[%clk 0:01:22.5]} 55. Kg2 {[%clk 0:00:58.8]} 55...
f4 {[%clk 0:01:21.5]} 56. Kf1 {[%clk 0:00:58.5]} 56... Kf3 {[%clk 0:01:21.2]}
57. Ke1 {[%clk 0:00:58.9]} 57... Kg2 {[%clk 0:01:21.2]} 58. Ke2 {[%clk
0:00:58.8]} 58... f3+ {[%clk 0:01:21.7]} 59. Ke3 {[%clk 0:00:55.1]} 59... e5
{[%clk 0:01:21.7]} 60. Ke4 {[%clk 0:00:54.1]} 60... Kxf2 {[%clk 0:01:21.9]} 61.
Kxe5 {[%clk 0:00:54.7]} 61... Ke2 {[%clk 0:01:22.1]} 62. Kf4 {[%clk 0:00:55.6]}
62... f2 {[%clk 0:01:22.5]} 0-1

[Event "Late-Titled-Tuesday-Blitz-April-30-2024"]
[Site "Chess.com"]
[Date "2024.04.30"]
[Round "7"]
[White "FMOlexandrProhorov"]
[Black "Dr_Pepper18"]
[Result "1-0"]
[WhiteElo "2270"]
[BlackElo "2476"]
[TimeControl "180+1"]
[EndTime "15:16:28 PDT"]
[Termination "FMOlexandrProhorov won on time"]

1. d4 {[%clk 0:02:54.3]} 1... d5 {[%clk 0:02:39.7]} 2. c4 {[%clk 0:02:54.3]}
2... e6 {[%clk 0:02:40.3]} 3. Nc3 {[%clk 0:02:54.4]} 3... a6 {[%clk 0:02:40.9]}
4. e3 {[%clk 0:02:51.5]} 4... Nf6 {[%clk 0:02:38.1]} 5. Nf3 {[%clk 0:02:51.3]}
5... Be7 {[%clk 0:02:33.9]} 6. b3 {[%clk 0:02:50.5]} 6... c5 {[%clk 0:02:22.3]}
7. dxc5 {[%clk 0:02:48.6]} 7... Bxc5 {[%clk 0:02:11.7]} 8. Bb2 {[%clk
0:02:48.2]} 8... O-O {[%clk 0:02:07.7]} 9. cxd5 {[%clk 0:02:46]} 9... Nxd5
{[%clk 0:01:54.6]} 10. Bd3 {[%clk 0:02:42.4]} 10... Qf6 {[%clk 0:00:40.1]} 11.
Na4 {[%clk 0:02:32]} 11... Bb4+ {[%clk 0:00:35.3]} 12. Ke2 {[%clk 0:02:31.2]}
12... Qe7 {[%clk 0:00:24.2]} 13. a3 {[%clk 0:02:30.1]} 13... Bd6 {[%clk
0:00:17.7]} 14. Qc2 {[%clk 0:02:21.3]} 14... h6 {[%clk 0:00:12.5]} 15. Rhd1
{[%clk 0:02:20.8]} 15... b5 {[%clk 0:00:11.5]} 16. Nc3 {[%clk 0:02:20.6]} 16...
Bb7 {[%clk 0:00:10.2]} 17. Nxd5 {[%clk 0:02:16.7]} 17... Bxd5 {[%clk 0:00:11.1]}
18. Qc3 {[%clk 0:02:16.8]} 18... f6 {[%clk 0:00:05.8]} 19. Rac1 {[%clk
0:02:03.1]} 19... Nd7 {[%clk 0:00:05.1]} 20. e4 {[%clk 0:01:40.7]} 20... Rfc8
{[%clk 0:00:05.2]} 21. Qd4 {[%clk 0:01:35.2]} 21... Bxb3 {[%clk 0:00:02.2]} 22.
Rxc8+ {[%clk 0:01:34.4]} 22... Rxc8 {[%clk 0:00:01.7]} 23. Rc1 {[%clk
0:01:19.4]} 23... Rxc1 {[%clk 0:00:01.1]} 24. Bxc1 {[%clk 0:01:20.3]} 24... Ne5
{[%clk 0:00:01.2]} 25. Bb1 {[%clk 0:01:02.3]} 25... Bc4+ {[%clk 0:00:00.3]} 26.
Ke1 {[%clk 0:01:01.7]} 26... Nd3+ {[%clk 0:00:00.5]} 27. Bxd3 {[%clk 0:01:01]}
1-0

[Event "Late-Titled-Tuesday-Blitz-April-30-2024"]
[Site "Chess.com"]
[Date "2024.04.30"]
[Round "7"]
[White "Hrant_ChessMood"]
[Black "GaiozNigalidze"]
[Result "1-0"]
[WhiteElo "2951"]
[BlackElo "2750"]
[TimeControl "180+1"]
[EndTime "15:16:29 PDT"]
[Termination "Hrant_ChessMood won by resignation"]

1. d4 {[%clk 0:02:40.4]} 1... Nf6 {[%clk 0:02:55]} 2. c4 {[%clk 0:02:39.4]} 2...
e6 {[%clk 0:02:54.5]} 3. Bf4 {[%clk 0:02:38.5]} 3... Bb4+ {[%clk 0:02:49.3]} 4.
Nd2 {[%clk 0:02:37.3]} 4... d5 {[%clk 0:02:48]} 5. Nf3 {[%clk 0:02:36.1]} 5...
O-O {[%clk 0:02:46.5]} 6. e3 {[%clk 0:02:36.2]} 6... b6 {[%clk 0:02:34.5]} 7. a3
{[%clk 0:02:36]} 7... Bd6 {[%clk 0:02:28.8]} 8. Bg5 {[%clk 0:02:36]} 8... Bb7
{[%clk 0:02:24.5]} 9. Rc1 {[%clk 0:02:34.1]} 9... Nbd7 {[%clk 0:02:23]} 10. Bd3
{[%clk 0:02:33.9]} 10... c5 {[%clk 0:02:20.5]} 11. cxd5 {[%clk 0:02:32.5]} 11...
exd5 {[%clk 0:02:18.9]} 12. dxc5 {[%clk 0:02:28.1]} 12... bxc5 {[%clk
0:02:13.6]} 13. O-O {[%clk 0:02:28]} 13... a5 {[%clk 0:02:07.2]} 14. Qc2 {[%clk
0:02:25.1]} 14... h6 {[%clk 0:02:06.7]} 15. Bh4 {[%clk 0:02:23.5]} 15... Re8
{[%clk 0:02:01.1]} 16. Rfd1 {[%clk 0:02:23.8]} 16... Qb6 {[%clk 0:01:55.3]} 17.
a4 {[%clk 0:02:13]} 17... Ba6 {[%clk 0:01:39.8]} 18. Bxa6 {[%clk 0:02:10.5]}
18... Qxa6 {[%clk 0:01:38.6]} 19. Nb1 {[%clk 0:02:03.5]} 19... g5 {[%clk
0:00:59.4]} 20. Bg3 {[%clk 0:01:53.2]} 20... Bxg3 {[%clk 0:00:58.8]} 21. hxg3
{[%clk 0:01:54.1]} 21... Qe6 {[%clk 0:00:57.6]} 22. Nc3 {[%clk 0:01:53.9]} 22...
Rac8 {[%clk 0:00:53.8]} 23. Nb5 {[%clk 0:01:50.4]} 23... Nb6 {[%clk 0:00:51]}
24. b3 {[%clk 0:01:47.7]} 24... Ne4 {[%clk 0:00:45.7]} 25. Nd2 {[%clk
0:01:43.2]} 25... f5 {[%clk 0:00:41.9]} 26. Nxe4 {[%clk 0:01:38.6]} 26... fxe4
{[%clk 0:00:36.6]} 27. Qd2 {[%clk 0:01:38.8]} 27... c4 {[%clk 0:00:28.2]} 28.
Nd4 {[%clk 0:01:35.3]} 28... Qf6 {[%clk 0:00:16.4]} 29. Qxa5 {[%clk 0:01:35.6]}
29... cxb3 {[%clk 0:00:16.1]} 30. Nxb3 {[%clk 0:01:36.1]} 30... Rb8 {[%clk
0:00:13.3]} 31. Nd4 {[%clk 0:01:33.3]} 31... Qf7 {[%clk 0:00:09.6]} 32. Nc6
{[%clk 0:01:20.9]} 32... Nc4 {[%clk 0:00:07.7]} 33. Qxd5 {[%clk 0:01:21.1]}
33... Qxd5 {[%clk 0:00:05.3]} 34. Rxd5 {[%clk 0:01:22]} 34... Nb6 {[%clk
0:00:05.3]} 35. Rb5 {[%clk 0:01:20.5]} 1-0

[Event "Late-Titled-Tuesday-Blitz-April-30-2024"]
[Site "Chess.com"]
[Date "2024.04.30"]
[Round "7"]
[White "maurovargas01"]
[Black "th3d4rkness"]
[Result "0-1"]
[WhiteElo "1948"]
[BlackElo "2153"]
[TimeControl "180+1"]
[EndTime "15:16:31 PDT"]
[Termination "th3d4rkness won on time"]

1. e4 {[%clk 0:02:59.7]} 1... c5 {[%clk 0:02:59.7]} 2. Nc3 {[%clk 0:02:59.5]}
2... Nc6 {[%clk 0:02:56.9]} 3. f4 {[%clk 0:03:00.4]} 3... a6 {[%clk 0:02:55.2]}
4. Nf3 {[%clk 0:03:01.3]} 4... g6 {[%clk 0:02:54.7]} 5. d3 {[%clk 0:03:01.3]}
5... Bg7 {[%clk 0:02:54.4]} 6. g3 {[%clk 0:03:01.1]} 6... Nd4 {[%clk 0:02:51.6]}
7. Bg2 {[%clk 0:02:57.5]} 7... Nxf3+ {[%clk 0:02:46.7]} 8. Bxf3 {[%clk
0:02:57.2]} 8... d6 {[%clk 0:02:47.1]} 9. Nd5 {[%clk 0:02:56.9]} 9... Nf6 {[%clk
0:02:45]} 10. Ne3 {[%clk 0:02:56.5]} 10... Rb8 {[%clk 0:02:40.4]} 11. O-O {[%clk
0:02:52.4]} 11... O-O {[%clk 0:02:39.4]} 12. Qe1 {[%clk 0:02:50.1]} 12... b5
{[%clk 0:02:38.1]} 13. h3 {[%clk 0:02:39.4]} 13... Bxh3 {[%clk 0:02:36.4]} 14.
g4 {[%clk 0:02:35.9]} 14... Bxf1 {[%clk 0:02:34.8]} 15. Qxf1 {[%clk 0:02:35.5]}
15... e5 {[%clk 0:02:31.2]} 16. f5 {[%clk 0:02:35.1]} 16... c4 {[%clk 0:02:08]}
17. g5 {[%clk 0:02:29.4]} 17... Nh5 {[%clk 0:02:07]} 18. f6 {[%clk 0:02:29.2]}
18... Nxf6 {[%clk 0:02:02.9]} 19. gxf6 {[%clk 0:02:27.7]} 19... Qxf6 {[%clk
0:02:03.1]} 20. Bg2 {[%clk 0:02:26.4]} 20... Qxf1+ {[%clk 0:02:01.2]} 21. Nxf1
{[%clk 0:02:26.1]} 21... cxd3 {[%clk 0:02:01.6]} 22. cxd3 {[%clk 0:02:25.5]}
22... f5 {[%clk 0:02:00.2]} 23. Bd2 {[%clk 0:02:24.1]} 23... f4 {[%clk
0:01:58.4]} 24. Nh2 {[%clk 0:02:22.6]} 24... h5 {[%clk 0:01:57.9]} 25. Nf3
{[%clk 0:02:22.4]} 25... Bf6 {[%clk 0:01:58.5]} 26. Rc1 {[%clk 0:02:18.3]} 26...
Rfc8 {[%clk 0:01:58.4]} 27. Kf2 {[%clk 0:02:11.5]} 27... Rxc1 {[%clk 0:01:57.8]}
28. Bxc1 {[%clk 0:02:11.6]} 28... Rc8 {[%clk 0:01:58.5]} 29. Bd2 {[%clk
0:02:07.4]} 29... Rc2 {[%clk 0:01:58.2]} 30. Ke2 {[%clk 0:02:02.6]} 30... Rxb2
{[%clk 0:01:58.1]} 31. Kd1 {[%clk 0:02:01.8]} 31... Rxa2 {[%clk 0:01:55.9]} 32.
Bh3 {[%clk 0:01:59.4]} 32... Kf7 {[%clk 0:01:55.2]} 33. Bc8 {[%clk 0:01:57.3]}
33... Bd8 {[%clk 0:01:53.2]} 34. Bb7 {[%clk 0:01:55.3]} 34... Kf6 {[%clk
0:01:52.6]} 35. Bd5 {[%clk 0:01:50.7]} 35... Ra1+ {[%clk 0:01:50]} 36. Kc2
{[%clk 0:01:49]} 36... Rf1 {[%clk 0:01:49.5]} 37. Ne1 {[%clk 0:01:42.2]} 37...
Bb6 {[%clk 0:01:48.3]} 38. Kd1 {[%clk 0:01:35.5]} 38... g5 {[%clk 0:01:46.3]}
39. Ke2 {[%clk 0:01:34.9]} 39... Rf2+ {[%clk 0:01:46.4]} 40. Kd1 {[%clk
0:01:33.1]} 40... g4 {[%clk 0:01:46.5]} 41. Bb4 {[%clk 0:01:26.2]} 41... Bc5
{[%clk 0:01:44.4]} 42. Ba5 {[%clk 0:01:23.8]} 42... g3 {[%clk 0:01:42.4]} 43.
Bd8+ {[%clk 0:01:23.2]} 43... Kg7 {[%clk 0:01:42.6]} 0-1